bitfinex-derivatives/quotes_SOLF0:USTF0_20250719
["timestamp","ask_amount","ask_price","bid_price","bid_amount"]
[1752894425214,5.6352,177.33,177.32,3.09]
[1752894427216,6.6152,177.33,177.32,3.09]
[1752894429615,0.98,177.37,177.32,3.09]
[1752894429920,0.98,177.39,177.33,4.92632971]
[1752894430121,5.6342,177.36,177.34,3.09]
[1752894431114,0.98,177.46,177.36,3.09]
[1752894431313,0.98,177.5,177.44,3.09]
[1752894431516,5.6312,177.45,177.44,3.09]
[1752894431716,6.6112,177.45,177.44,5.53424223]
[1752894431913,5.6312,177.45,177.44,5.53424223]
[1752894432118,1.83632971,177.5,177.45,3.09]
[1752894432319,0.98,177.49,177.47,3.09]
[1752894432516,6.6099,177.49,177.48,3.09]
[1752894432719,0.98,177.48,177.46,3.09]
[1752894433423,5.6311,177.46,177.43,1.83632971]
[1752894433618,5.6311,177.46,177.44,2.44726607]
[1752894433818,5.6311,177.46,177.45,5.53726607]
[1752894434018,5.6311,177.46,177.45,3.09]
[1752894434523,5.6303,177.48,177.45,3.09]
[1752894434727,0.98,177.49,177.45,3.09]
[1752894434925,5.6303,177.48,177.45,3.09]
[1752894436523,5.6306,177.47,177.45,3.09]
[1752894437926,0.98,177.49,177.44,3.09]
[1752894438126,0.98,177.48,177.44,3.09]
[1752894438429,5.6312,177.46,177.44,3.09]
[1752894439226,5.6312,177.45,177.44,3.09]
[1752894441227,5.6319,177.43,177.42,3.09]
[1752894441430,0.98,177.45,177.42,3.09]
[1752894441628,5.6318,177.44,177.42,3.09]
[1752894441929,0.98,177.45,177.41,3.09]
[1752894442129,0.98,177.44,177.41,3.09]
[1752894442523,0.98,177.47,177.41,3.09]
[1752894442829,0.98,177.44,177.41,3.09]
[1752894443232,5.6321,177.43,177.41,3.09]
[1752894448132,5.6323,177.42,177.37,5.6336]
[1752894448435,5.6323,177.42,177.34,4.46541937]
[1752894448627,5.6323,177.42,177.4,3.23]
[1752894450028,5.6325,177.41,177.4,3.23]
[1752894450232,1.83632971,177.46,177.4,3.23]
[1752894450436,0.97,177.45,177.4,3.23]
[1752894450635,5.6321,177.43,177.4,3.23]
[1752894454438,5.6322,177.42,177.4,3.23]
[1752894454834,0.97,177.48,177.4,1.83632971]
[1752894455138,0.97,177.48,177.44,3.23]
[1752894455338,5.6307,177.47,177.44,3.23]
[1752894457038,8.43662971,177.48,177.44,3.23]
[1752894457543,5.6306,177.47,177.44,3.23]
[1752894458345,6.6004,177.48,177.44,3.23]
[1752894459039,0.97,177.51,177.44,5.06632971]
[1752894459233,0.97,177.51,177.45,3.23]
[1752894460344,6.5998,177.5,177.46,3.23]
[1752894461044,5.6299,177.49,177.46,3.23]
[1752894463549,5.63,177.49,177.46,3.23]
[1752894463748,112.65988463,177.54,177.46,3.23]
[1752894463950,1.83632971,177.52,177.47,3.23]
[1752894464146,5.6296,177.5,177.47,3.23]
[1752894465644,6.5996,177.5,177.47,3.23]
[1752894466446,5.6302,177.49,177.38,6.49647223]
[1752894466645,6.6002,177.49,177.45,1.83632971]
[1752894466947,6.6002,177.49,177.46,3.23]
[1752894467449,5.6304,177.48,177.45,3.23]
[1752894467748,6.6004,177.48,177.45,3.23]
[1752894469053,5.6299,177.5,177.45,1.83632971]
[1752894469254,6.5999,177.5,177.46,3.23]
[1752894469749,5.6299,177.5,177.46,3.23]
[1752894470048,6.5999,177.5,177.46,3.23]
[1752894470251,0.97,177.5,177.46,3.23]
[1752894470945,5.63,177.49,177.46,3.23]
[1752894471149,0.97,177.48,177.44,3.23]
[1752894471451,0.97,177.48,177.45,5.67874132]
[1752894471748,1.83632971,177.47,177.43,3.23]
[1752894471949,0.97,177.46,177.44,2.44860833]
[1752894472146,1.83632971,177.45,177.43,3.23]
[1752894472346,1.83632971,177.45,177.44,2.44920632]
[1752894472545,7.46752971,177.45,177.44,2.44920632]
[1752894472941,8.43752971,177.45,177.44,2.44920632]
[1752894473146,8.43752971,177.45,177.44,5.67920632]
[1752894473847,8.43752971,177.45,177.44,2.44920632]
[1752894474345,35.05710612,177.55,177.4,1.83632971]
[1752894474346,0.96,177.46,177.4,1.83632971]
[1752894474546,1.83632971,177.48,177.43,3.22]
[1752894474855,2.79632971,177.49,177.45,3.22]
[1752894475244,5.6305,177.48,177.46,2.45910637]
[1752894475448,5.6305,177.48,177.45,3.22]
[1752894475449,6.5905,177.48,177.45,3.22]
[1752894475651,6.5905,177.48,177.47,3.22]
[1752894476551,5.6305,177.48,177.47,3.22]
[1752894476953,6.59,177.49,177.48,3.22]
[1752894477353,8.42632971,177.49,177.48,3.22]
[1752894477851,5.63,177.49,177.48,5.67888375]
[1752894478053,8.42592971,177.5,177.49,3.22]
[1752894478755,5.6296,177.5,177.49,3.22]
[1752894479952,5.6293,177.51,177.49,3.22]
[1752894480257,2.80632971,177.53,177.49,3.22]
[1752894480654,7.85090612,177.55,177.49,3.22]
[1752894480853,110.58632971,177.54,177.49,3.22]
[1752894481154,5.6292,177.52,177.49,3.22]
[1752894481950,5.6292,177.52,177.5,2.45722836]
[1752894482153,5.6292,177.52,177.51,3.22]
[1752894482756,8.43552971,177.52,177.51,3.22]
[1752894484360,6.5992,177.52,177.51,3.22]
[1752894484563,5.6292,177.52,177.51,3.22]
[1752894485862,5.6287,177.53,177.51,3.22]
[1752894486359,2.80632971,177.54,177.52,3.22]
[1752894486566,0.97,177.53,177.52,3.22]
[1752894487562,0.97,177.53,177.49,3.22]
[1752894487761,2.80632971,177.53,177.49,3.22]
[1752894487957,5.6294,177.51,177.49,3.22]
[1752894489263,5.6291,177.52,177.49,3.22]
[1752894489464,5.6291,177.52,177.51,3.22]
[1752894490364,5.6285,177.54,177.51,3.22]
[1752894490564,114.52090612,177.55,177.51,3.22]
[1752894491263,5.6286,177.54,177.51,3.22]
[1752894491766,5.6287,177.53,177.51,3.22]
[1752894492465,2.80632971,177.54,177.52,3.22]
[1752894492863,0.97,177.54,177.52,3.22]
[1752894493160,1.83632971,177.53,177.52,3.22]
[1752894493768,2.80632971,177.53,177.42,4.66014252]
[1752894493969,5.01632971,177.51,177.45,1.83632971]
[1752894494156,3.18,177.5,177.46,2.4659177]
[1752894494361,1.83632971,177.51,177.47,2.4659177]
[1752894494362,3.18,177.49,177.47,2.4659177]
[1752894494563,3.18,177.49,177.44,1.83632971]
[1752894494765,3.18,177.49,177.45,2.46722038]
[1752894495061,110.46,177.51,177.46,2.46722038]
[1752894495263,107.28,177.51,177.47,2.46722038]
[1752894495563,107.28,177.51,177.48,2.46722038]
[1752894495764,1.83632971,177.53,177.49,2.46723607]
[1752894495964,5.01632971,177.53,177.51,3.22]
[1752894496367,7.46522971,177.53,177.51,3.22]
[1752894497272,5.6289,177.53,177.51,3.22]
[1752894497572,112.8684,177.54,177.51,3.22]
[1752894498469,5.6287,177.53,177.51,3.22]
[1752894499369,112.8684,177.54,177.51,3.22]
[1752894499865,107.24,177.54,177.51,3.22]
[1752894500566,6.88090612,177.55,177.51,3.22]
[1752894500766,6.88090612,177.55,177.53,3.22]
[1752894501565,12.50900612,177.55,177.53,3.22]
[1752894503872,6.88090612,177.55,177.53,3.22]
[1752894505471,12.50890612,177.55,177.53,3.22]
[1752894507270,6.88090612,177.55,177.53,3.22]
[1752894507466,10.21090612,177.55,177.54,3.32]
[1752894507674,6.88090612,177.55,177.54,3.32]
[1752894508874,12.50890612,177.55,177.54,3.32]
[1752894509472,17.67523583,177.55,177.54,3.32]
[1752894510176,15.83890612,177.55,177.54,3.32]
[1752894510676,6.88090612,177.55,177.54,3.32]
[1752894511675,10.21090612,177.55,177.54,3.32]
[1752894512078,6.88090612,177.55,177.54,3.32]
[1752894513677,12.50890612,177.55,177.54,3.32]
[1752894513869,6.88090612,177.55,177.54,3.32]
[1752894516279,10.21090612,177.55,177.54,3.32]
[1752894517284,17.67523583,177.55,177.54,3.32]
[1752894517481,8.71723583,177.55,177.49,3.32]
[1752894517677,3.33,177.54,177.51,3.32]
[1752894517883,5.629,177.53,177.51,3.32]
[1752894518281,5.629,177.53,177.52,2.46399893]
[1752894518479,5.629,177.53,177.52,5.78399893]
[1752894518775,8.71723583,177.55,177.52,2.46399893]
[1752894518982,3.33,177.53,177.52,3.32]
[1752894519178,8.9586,177.54,177.53,3.32]
[1752894520382,6.88090612,177.55,177.54,3.32]
[1752894521083,10.21090612,177.55,177.54,3.32]
[1752894521686,15.83890612,177.55,177.54,3.32]
[1752894522783,8.9584,177.54,177.53,3.32]
[1752894522986,10.21090612,177.55,177.53,5.78518142]
[1752894523184,10.21090612,177.55,177.54,3.32]
[1752894523387,6.88090612,177.55,177.54,3.32]
[1752894523586,6.88090612,177.55,177.54,5.78505413]
[1752894524186,10.21090612,177.55,177.54,2.46505413]
[1752894524386,15.83890612,177.55,177.54,2.46505413]
[1752894524586,3.33,177.54,177.51,3.32]
[1752894524881,3.33,177.54,177.53,3.32]
[1752894525082,3.33,177.54,177.53,5.78633108]
[1752894525279,6.88090612,177.55,177.54,3.32]
[1752894525481,6.88090612,177.55,177.54,5.78633108]
[1752894530599,10.21090612,177.55,177.54,5.78633108]
[1752894531793,6.88090612,177.55,177.54,5.78633108]
[1752894533103,17.67523583,177.55,177.54,2.46633108]
[1752894533306,3.33,177.54,177.52,3.32]
[1752894533604,3.33,177.54,177.53,2.46679763]
[1752894533799,3.33,177.54,177.53,5.78679763]
[1752894533996,8.9586,177.54,177.53,5.78679763]
[1752894535693,3.3,177.54,177.47,4.69799945]
[1752894535893,3.3,177.53,177.49,3.07]
[1752894536096,3.3,177.53,177.51,3.07]
[1752894536296,3.3,177.53,177.47,1.83632971]
[1752894536494,8.9287,177.53,177.52,3.07]
[1752894537798,3.3,177.53,177.48,3.07]
[1752894538005,3.3,177.51,177.5,3.07]
[1752894538697,8.9296,177.51,177.5,3.07]
[1752894538903,3.3,177.51,177.44,3.07]
[1752894539104,5.13632971,177.46,177.45,3.07]
[1752894539305,3.3,177.45,177.41,3.07]
[1752894539505,1.83632971,177.46,177.42,4.66391752]
[1752894539506,3.3,177.44,177.42,4.66391752]
[1752894539707,3.3,177.5,177.43,7.74108614]
[1752894539906,1.83632971,177.48,177.45,3.07]
[1752894540104,5.13632971,177.48,177.45,3.07]
[1752894540805,5.6306,177.47,177.45,3.07]
[1752894541508,8.9306,177.47,177.46,3.07]
[1752894543607,5.6306,177.47,177.46,3.07]
[1752894545208,8.9306,177.47,177.46,3.07]
[1752894545411,3.3,177.46,177.45,3.07]
[1752894545907,8.9309,177.46,177.45,3.07]
[1752894546099,8.9309,177.46,177.43,3.07]
[1752894546100,3.3,177.45,177.43,3.07]
[1752894546308,3.3,177.45,177.4,3.07]
[1752894546505,3.3,177.45,177.42,3.07]
[1752894546902,1.83632971,177.43,177.34,4.69799945]
[1752894547207,3.3,177.4,177.39,3.07]
[1752894547411,8.9328,177.4,177.39,3.07]
[1752894547804,8.9328,177.4,177.39,2.40034686]
[1752894548007,8.9328,177.4,177.33,4.69799945]
[1752894548008,3.3,177.4,177.33,3.07]
[1752894548309,5.13632971,177.35,177.34,2.40078117]
[1752894548608,3.3,177.34,177.32,3.07]
[1752894548809,1.83632971,177.35,177.32,3.07]
[1752894549009,1.83632971,177.35,177.28,1.83632971]
[1752894549010,1.83632971,177.35,177.33,3.07]
[1752894549410,3.3,177.34,177.33,3.07]
[1752894549914,8.935,177.34,177.33,3.07]
[1752894551018,1.83632971,177.37,177.31,3.07]
[1752894551217,5.13632971,177.37,177.31,3.07]
[1752894551418,5.6348,177.34,177.31,3.07]
[1752894551613,5.6348,177.34,177.29,1.83632971]
[1752894551816,3.3,177.33,177.32,3.07]
[1752894552216,5.6347,177.34,177.32,3.07]
[1752894552512,8.9347,177.34,177.33,3.07]
[1752894552816,5.6347,177.34,177.33,3.07]
[1752894553015,1.83632971,177.39,177.33,1.83632971]
[1752894553213,3.3,177.38,177.34,3.07]
[1752894553607,3.3,177.36,177.31,3.07]
[1752894553813,3.3,177.35,177.31,3.07]
[1752894554412,1.83632971,177.37,177.31,3.07]
[1752894554620,109.11632971,177.45,177.31,3.07]
[1752894554621,3.3,177.34,177.31,3.07]
[1752894554809,5.6361,177.3,177.29,3.07]
[1752894555015,3.3,177.3,177.26,3.07]
[1752894555217,3.3,177.29,177.27,3.07]
[1752894555419,8.9363,177.29,177.28,3.07]
[1752894555815,5.6363,177.29,177.28,3.07]
[1752894557222,8.9363,177.29,177.28,3.07]
[1752894557814,5.637,177.27,177.26,3.07]
[1752894558016,5.637,177.27,177.2,378.56]
[1752894558017,3.3,177.26,177.25,3.07]
[1752894558617,8.9375,177.26,177.25,3.07]
[1752894558821,1.83632971,177.26,177.23,3.07]
[1752894559020,3.3,177.25,177.23,3.07]
[1752894559220,5.6379,177.24,177.23,3.07]
[1752894559424,1.83632971,177.26,177.22,3.07]
[1752894559725,5.13632971,177.26,177.22,3.07]
[1752894560723,5.6378,177.25,177.22,3.07]
[1752894561021,3.3,177.25,177.22,3.07]
[1752894561227,5.6388,177.22,177.19,1.83632971]
[1752894561423,5.6388,177.22,177.2,3.07]
[1752894561633,3.3,177.21,177.18,3.07]
[1752894562322,3.3,177.2,177.19,3.07]
[1752894562626,8.9394,177.2,177.19,3.07]
[1752894563422,3.3,177.22,177.21,3.07]
[1752894563926,8.9386,177.22,177.21,3.07]
[1752894564316,3.3,177.22,177.19,1.83632971]
[1752894564516,3.19,177.21,177.2,3.11]
[1752894564721,3.19,177.24,177.21,3.11]
[1752894565521,5.6385,177.22,177.21,3.11]
[1752894565826,8.8285,177.22,177.21,3.11]
[1752894566329,5.6391,177.21,177.18,1.83632971]
[1752894566530,8.8291,177.21,177.2,3.11]
[1752894568432,3.19,177.21,177.15,3.11]
[1752894568625,1.83632971,177.24,177.07,4.65178156]
[1752894568626,3.19,177.19,177.16,3.11]
[1752894568822,1.83632971,177.2,177.17,3.11]
[1752894569024,3.19,177.18,177.17,3.11]
[1752894569435,8.8298,177.18,177.17,3.11]
[1752894571929,10.66612971,177.18,177.12,1.83632971]
[1752894572134,5.6409,177.15,177.13,3.11]
[1752894572536,3.19,177.17,177.12,3.11]
[1752894572735,3.19,177.15,177.1,3.11]
[1752894572932,1.83632971,177.14,177.11,3.11]
[1752894573132,3.19,177.11,177.06,4.94632971]
[1752894573338,1.83632971,177.12,177.07,3.11]
[1752894573527,5.6426,177.1,177.07,3.11]
[1752894573730,8.8326,177.1,177.07,3.11]
[1752894574233,5.6421,177.11,177.07,3.11]
[1752894575237,5.6424,177.1,177.07,3.11]
[1752894576339,8.8324,177.1,177.07,3.11]
[1752894576741,5.6427,177.09,177.07,3.11]
[1752894576937,3.19,177.08,177.07,3.11]
[1752894577138,8.8327,177.09,177.08,3.11]
[1752894577938,5.6427,177.09,177.08,3.11]
[1752894578140,5.6424,177.1,177.08,3.11]
[1752894578440,5.6424,177.1,177.09,3.11]
[1752894578639,8.8324,177.1,177.09,3.11]
[1752894579039,7.47842971,177.11,177.09,3.11]
[1752894579239,1.83632971,177.11,177.07,3.11]
[1752894579437,5.02632971,177.11,177.07,3.11]
[1752894579840,5.02632971,177.13,177.07,3.11]
[1752894580234,5.6423,177.11,177.07,3.11]
[1752894580441,8.8323,177.11,177.07,3.11]
[1752894581044,3.19,177.22,177.11,3.11]
[1752894581241,1.83632971,177.18,177.11,3.11]
[1752894581442,3.19,177.17,177.12,3.11]
[1752894581642,1.83632971,177.18,177.12,3.11]
[1752894581840,3.19,177.18,177.14,3.11]
[1752894582137,3.19,177.17,177.13,1.83632971]
[1752894582335,3.19,177.17,177.15,3.11]
[1752894582736,3.19,177.18,177.15,3.11]
[1752894583138,3.19,177.17,177.15,3.11]
[1752894583334,3.19,177.17,177.16,3.11]
[1752894583837,8.8304,177.17,177.16,3.11]
[1752894584042,1.83632971,177.19,177.08,4.65178156]
[1752894584043,3.19,177.19,177.15,3.11]
[1752894585140,5.6396,177.19,177.15,3.11]
[1752894585340,1.83632971,177.2,177.15,3.11]
[1752894585541,5.02632971,177.2,177.15,3.11]
[1752894585741,1.83632971,177.23,177.17,3.11]
[1752894585939,5.02632971,177.23,177.17,3.11]
[1752894586540,1.83632971,177.23,177.17,3.11]
[1752894586837,3.19,177.21,177.17,3.11]
[1752894587435,1.83632971,177.22,177.17,3.11]
[1752894587843,5.02632971,177.24,177.19,3.11]
[1752894588344,3.19,177.24,177.19,8.7493]
[1752894588547,3.19,177.25,177.2,3.11]
[1752894588842,5.02632971,177.26,177.19,3.11]
[1752894589046,10.66362971,177.26,177.21,3.11]
[1752894589259,3.19,177.29,177.24,1.83632971]
[1752894589545,3.19,177.3,177.26,3.11]
[1752894589740,8.826,177.3,177.26,3.11]
[1752894589943,3.19,177.29,177.26,3.11]
[1752894590240,3.19,177.29,177.28,3.11]
[1752894590549,8.8263,177.29,177.28,3.11]
[1752894590748,5.02632971,177.29,177.23,4.94632971]
[1752894590946,3.19,177.28,177.27,3.11]
[1752894591146,3.19,177.28,177.27,7.65687127]
[1752894591548,3.19,177.3,177.27,4.54687127]
[1752894591749,1.83632971,177.35,177.29,3.11]
[1752894591949,3.19,177.34,177.31,3.11]
[1752894592251,1.83632971,177.35,177.34,3.11]
[1752894592848,5.02632971,177.36,177.34,3.11]
[1752894593049,3.19,177.35,177.34,3.11]
[1752894593245,3.19,177.35,177.3,3.11]
[1752894593448,3.19,177.35,177.31,4.54634162]
[1752894593646,5.6349,177.34,177.32,4.54634162]
[1752894593852,3.19,177.33,177.31,3.11]
[1752894594052,3.19,177.33,177.32,4.54634162]
[1752894594252,3.19,177.33,177.32,3.23]
[1752894594452,5.6349,177.34,177.29,1.83632971]
[1752894594750,1.83632971,177.38,177.31,5.06632971]
[1752894594954,5.03632971,177.38,177.33,5.06632971]
[1752894595156,1.83632971,177.36,177.33,3.23]
[1752894595354,3.2,177.34,177.3,3.23]
[1752894595552,3.2,177.34,177.32,3.23]
[1752894595753,3.2,177.34,177.33,3.23]
[1752894595949,3.2,177.34,177.31,3.23]
[1752894596163,3.2,177.36,177.33,3.23]
[1752894596858,3.2,177.36,177.34,3.23]
[1752894597055,3.2,177.36,177.35,3.23]
[1752894599760,8.8341,177.36,177.35,3.23]
[1752894600559,3.2,177.32,177.28,3.23]
[1752894600757,3.2,177.32,177.26,1.83632971]
[1752894600758,1.83632971,177.32,177.26,1.83632971]
[1752894600958,3.2,177.31,177.29,3.23]
[1752894601159,7.47192971,177.32,177.29,3.23]
[1752894601360,3.2,177.3,177.29,3.23]
[1752894603362,10.67172971,177.32,177.29,3.23]
[1752894603554,10.67172971,177.32,177.25,1.83632971]
[1752894603555,3.2,177.31,177.3,3.23]
[1752894603758,7.47172971,177.32,177.3,3.23]
[1752894603959,10.67172971,177.32,177.31,3.23]
[1752894604764,8.8354,177.32,177.29,3.23]
[1752894604965,5.6351,177.33,177.31,3.23]
[1752894605156,8.8351,177.33,177.32,3.23]
[1752894605358,1.83632971,177.36,177.3,3.23]
[1752894605665,1.83632971,177.38,177.32,3.23]
[1752894605864,3.2,177.36,177.32,3.23]
[1752894606464,8.8341,177.36,177.32,3.23]
[1752894608268,3.2,177.34,177.32,3.23]
[1752894608570,3.2,177.34,177.33,3.23]
[1752894610366,8.8347,177.34,177.33,3.23]
[1752894610958,3.2,177.34,177.33,3.23]
[1752894613065,8.8347,177.34,177.33,3.23]
[1752894613270,3.2,177.33,177.3,3.23]
[1752894614272,3.2,177.32,177.31,3.23]
[1752894615372,5.03632971,177.36,177.31,3.23]
[1752894615570,5.03632971,177.32,177.26,3.23]
[1752894615868,3.2,177.31,177.26,3.23]
[1752894616263,3.2,177.3,177.26,3.23]
[1752894616463,1.83632971,177.3,177.26,3.23]
[1752894616663,3.2,177.28,177.27,3.23]
[1752894616875,5.03632971,177.28,177.27,3.23]
[1752894617268,5.03632971,177.28,177.21,1.83632971]
[1752894617468,3.2,177.26,177.22,3.23]
[1752894618372,5.637,177.27,177.22,3.23]
[1752894618772,1.83632971,177.28,177.22,3.23]
[1752894619274,3.2,177.29,177.24,3.23]
[1752894619476,3.2,177.28,177.24,3.23]
[1752894619677,5.6372,177.27,177.24,3.23]
[1752894619873,8.8372,177.27,177.24,3.23]
[1752894620575,1.83632971,177.28,177.22,1.83632971]
[1752894620775,3.2,177.26,177.2,1.83632971]
[1752894621070,3.2,177.26,177.25,3.23]
[1752894621275,3.2,177.28,177.26,3.23]
[1752894621472,3.2,177.28,177.27,3.23]
[1752894621869,5.03632971,177.31,177.27,3.23]
[1752894622075,3.2,177.31,177.27,3.23]
[1752894622276,1.83632971,177.33,177.27,3.23]
[1752894622670,7.47142971,177.33,177.27,3.23]
[1752894623173,10.67142971,177.33,177.27,3.23]
[1752894623577,8.8351,177.33,177.27,3.23]
[1752894623774,3.2,177.35,177.28,1.83632971]
[1752894623976,3.2,177.35,177.29,3.23]
[1752894624371,8.8346,177.35,177.3,3.3]
[1752894624777,3.01,177.34,177.3,3.3]
[1752894625778,3.01,177.34,177.3,5.6359]
[1752894626074,4.84632971,177.36,177.31,7.84917042]
[1752894626276,8.6442,177.36,177.31,3.3]
[1752894626477,3.01,177.38,177.32,10.18309772]
[1752894626677,3.01,177.38,177.32,3.3]
[1752894627171,8.6436,177.38,177.33,4.55031975]
[1752894627380,3.01,177.37,177.34,3.3]
[1752894627779,8.6438,177.37,177.34,3.3]
[1752894627980,3.01,177.37,177.34,3.3]
[1752894628182,8.6438,177.37,177.34,3.3]
[1752894628678,8.6438,177.37,177.35,3.3]
[1752894628881,3.01,177.36,177.35,3.3]
[1752894629481,7.47012971,177.37,177.31,7.47192971]
[1752894629683,3.01,177.35,177.34,3.3]
[1752894630084,3.01,177.35,177.31,1.83632971]
[1752894630283,7.47012971,177.37,177.33,3.3]
[1752894630284,3.01,177.34,177.33,3.3]
[1752894630480,3.01,177.34,177.33,10.19388482]
[1752894630682,7.47012971,177.37,177.33,10.19388482]
[1752894630981,4.84632971,177.37,177.35,3.3]
[1752894631581,1.83632971,177.37,177.35,3.3]
[1752894631781,3.01,177.36,177.35,3.3]
[1752894631976,1.83632971,177.37,177.35,10.19745987]
[1752894632174,3.01,177.38,177.33,5.635]
[1752894632381,3.01,177.38,177.37,3.3]
[1752894632580,3.01,177.38,177.34,3.3]
[1752894632783,3.01,177.36,177.35,6.90193178]
[1752894633286,8.6441,177.36,177.35,6.90193178]
[1752894633585,8.6441,177.36,177.35,10.20193178]
[1752894633776,8.6437,177.38,177.35,6.90193178]
[1752894633982,3.01,177.38,177.37,3.3]
[1752894634283,1.83632971,177.39,177.37,3.3]
[1752894634284,4.84632971,177.39,177.38,3.3]
[1752894634881,4.84632971,177.39,177.36,3.3]
[1752894635184,3.01,177.38,177.37,10.21319103]
[1752894635681,3.01,177.38,177.37,10.2131508]
[1752894636185,7.46952971,177.39,177.38,3.3]
[1752894636583,10.47952971,177.39,177.38,3.3]
[1752894636783,10.47952971,177.39,177.36,3.3]
[1752894637084,3.01,177.38,177.37,2.34587214]
[1752894637475,8.6434,177.38,177.37,2.34587214]
[1752894638081,3.01,177.38,177.36,3.3]
[1752894638290,8.6432,177.39,177.36,3.3]
[1752894638488,8.6432,177.39,177.37,3.3]
[1752894638786,3.01,177.38,177.37,3.3]
[1752894643389,111.353,177.4,177.37,3.3]
[1752894643687,114.363,177.4,177.37,3.3]
[1752894647692,114.363,177.4,177.35,3.3]
[1752894647693,3.01,177.38,177.35,3.3]
[1752894647890,3.01,177.38,177.37,3.3]
[1752894648393,5.6332,177.39,177.37,3.3]
[1752894648594,8.6432,177.39,177.38,3.3]
[1752894650695,3.01,177.39,177.38,3.3]
[1752894651999,8.6431,177.39,177.38,3.3]
[1752894652196,3.01,177.38,177.33,1.83632971]
[1752894652397,3.01,177.37,177.35,3.3]
[1752894652697,3.01,177.37,177.36,5.64922538]
[1752894652999,3.01,177.38,177.37,3.3]
[1752894653594,108.73,177.4,177.37,3.3]
[1752894653894,105.72,177.4,177.37,3.3]
[1752894654494,108.94,177.4,177.37,3.3]
[1752894654991,3.22,177.42,177.38,2.34796212]
[1752894655298,108.58,177.43,177.38,3.03]
[1752894655591,108.58,177.43,177.39,2.34737182]
[1752894655895,108.58,177.43,177.38,5.6334]
[1752894655896,108.58,177.43,177.4,3.03]
[1752894656799,105.36,177.43,177.4,3.03]
[1752894657093,105.34,177.46,177.42,3.03]
[1752894657695,3.22,177.44,177.41,3.03]
[1752894658393,3.22,177.44,177.38,5.6334]
[1752894658589,3.22,177.44,177.39,5.37471206]
[1752894658894,5.05632971,177.44,177.41,3.03]
[1752894659095,3.22,177.43,177.41,3.03]
[1752894659294,3.22,177.43,177.42,3.03]
[1752894661404,5.05632971,177.44,177.43,3.03]
[1752894663504,114.191,177.46,177.43,3.03]
[1752894664306,5.6312,177.45,177.43,3.03]
[1752894664806,8.8512,177.45,177.44,3.03]
[1752894666406,8.8512,177.45,177.35,4.6778015]
[1752894666407,5.6319,177.43,177.42,3.03]
[1752894666606,5.05632971,177.45,177.38,7.46962971]
[1752894666607,3.22,177.44,177.39,3.03]
[1752894666798,1.83632971,177.45,177.41,3.03]
[1752894667003,110.971,177.46,177.42,2.34397294]
[1752894667309,110.971,177.46,177.43,3.03]
[1752894668408,105.34,177.46,177.43,3.03]
[1752894668705,110.37632971,177.49,177.43,3.03]